[Event "31st Roquetas de Mar Open 2020"]
[Site "Roquetas de Mar"]
[Date "2020.01.05"]
[Round "6.7"]
[White "Raja Harshit"]
[Black "Maiorov, Nikita"]
[Result "0-1"]
[ECO "C95"]
[WhiteElo "2482"]
[BlackElo "2519"]
[Annotator "ChessBase"]
[PlyCount "64"]
[EventDate "2020.01.02"]
[EventType "swiss"]
[EventCountry "ESP"]
[SourceTitle "playchess.com"]
[Source "ChessBase"]
[SourceQuality "1"]
[TimeControl "5400+30"]

1. e4 e5 2. Nf3 Nc6 3. Bb5 a6 4. Ba4 Nf6 5. O-O Be7 6. Re1 b5 7. Bb3 d6 8. c3 O-O 9. h3 Nb8 10. d4 Nbd7 11. c4 c6 12. Nc3 Qc7 13. a3 exd4 14. Nxd4 Ne5 15. cxb5 axb5 16. Bg5 h6 17. Bh4 b4 18. axb4 Rxa1 19. Qxa1 Nd3 20. Rd1 Nxb4 21. Qa4 Qb6 22. Bxf6 Bxf6 23. Ncb5 Qc5 24. Nxc6 Nxc6 25. Nxd6 Nd4 26. Nxc8 Nxb3 27. Nd6 Nd4 28. Nc4 Ne2+ 29. Kf1 Nf4 30. b3 Qh5 31. f3 Nxh3 32. Rd5 Ng5 0-1

[Event "31st Roquetas de Mar Open 2020"]
[Site "Roquetas de Mar"]
[Date "2020.01.05"]
[Round "6.8"]
[White "Merario Alarcon, Andres"]
[Black "Klekowski, Maciej"]
[Result "1/2-1/2"]
[ECO "E35"]
[WhiteElo "2412"]
[BlackElo "2515"]
[Annotator "ChessBase"]
[PlyCount "60"]
[EventDate "2020.01.02"]
[EventType "swiss"]
[EventCountry "ESP"]
[SourceTitle "playchess.com"]
[Source "ChessBase"]
[SourceQuality "1"]
[TimeControl "5400+30"]

1. d4 {[%emt 0:00:00]} Nf6 {[%emt 0:00:00]} 2. c4 {[%emt 0:00:00]} e6 {[%emt 0:00:00]} 3. Nc3 {[%emt 0:00:09]} Bb4 {[%emt 0:00:00]} 4. Qc2 {[%emt 0:00:07]} d5 {[%emt 0:00:10]} 5. cxd5 {[%emt 0:00:24]} exd5 {[%emt 0:00:11]} 6. Bg5 {[%emt 0:00:15]} h6 {[%emt 0:00:07]} 7. Bh4 {[%emt 0:00:05]} Nc6 {[%emt 0:20:09]} 8. e3 {[%emt 0:00:51]} g5 {[%emt 0:00:36]} 9. Bg3 {[%emt 0:00:07]} Ne4 {[%emt 0:00:18]} 10. Bd3 {[%emt 0:20:08]} Bf5 {[%emt 0:14:40]} 11. Nge2 {[%emt 0:04:20]} h5 {[%emt 0:02:52]} 12. f3 {[%emt 0:02:36]} Nxg3 {[%emt 0:00:11]} 13. Nxg3 {[%emt 0:03:56]} Be6 {[%emt 0:01:45]} 14. Bf5 {[%emt 0:06:51]} Qf6 {[%emt 0:01:03]} 15. Bxe6 {[%emt 0:01:19]} fxe6 {[%emt 0:00:03]} 16. Nge2 {[%emt 0:05:48]} O-O-O {[%emt 0:03:01]} 17. O-O-O {[%emt 0:01:47]} e5 {[%emt 0:02:14]} 18. Kb1 {[%emt 0:02:25]} Rhe8 {[%emt 0:10:32]} 19. dxe5 {[%emt 0:05:32]} Qxe5 {[%emt 0:00:55]} 20. e4 {[%emt 0:04:10]} Bxc3 {[%emt 0:09:48]} 21. Nxc3 {[%emt 0:00:31]} dxe4 {[%emt 0:00:03]} 22. Qxe4 {[%emt 0:04:16]} Qxe4+ {[%emt 0:16:26]} 23. Nxe4 {[%emt 0:00:50]} g4 {[%emt 0:01:04]} 24. Rxd8+ {[%emt 0:04:04]} Nxd8 {[%emt 0:00:18]} 25. Nf6 {[%emt 0:01:56]} Rf8 {[%emt 0:00:57]} 26. Nxh5 {[%emt 0:00:46]} gxf3 {[%emt 0:00:03]} 27. g4 {[%emt 0:07:38]} f2 {[%emt 0:01:05]} 28. Rf1 {[%emt 0:00:24]} Ne6 {[%emt 0:01:27]} 29. Kc1 {[%emt 0:04:30]} Ng5 {[%emt 0:01:09]} 30. Kd1 {[%emt 0:03:38]} Nh3 1/2-1/2

[Event "31st Roquetas de Mar Open 2020"]
[Site "Roquetas de Mar"]
[Date "2020.01.05"]
[Round "6.11"]
[White "Shariyazdanov, Andrey"]
[Black "Garcia Moreno, Carlos"]
[Result "1-0"]
[ECO "D38"]
[WhiteElo "2519"]
[BlackElo "2289"]
[Annotator "ChessBase"]
[PlyCount "107"]
[EventDate "2020.01.02"]
[EventType "swiss"]
[EventCountry "ESP"]
[SourceTitle "playchess.com"]
[Source "ChessBase"]
[SourceQuality "1"]
[TimeControl "5400+30"]

1. Nf3 {[%emt 0:02:09]} Nf6 {[%emt 0:00:00]} 2. c4 {[%emt 0:00:07]} e6 {[%emt 0:00:32]} 3. Nc3 {[%emt 0:00:11]} d5 {[%emt 0:01:20]} 4. d4 {[%emt 0:00:21]} Bb4 {[%emt 0:01:14]} 5. Qa4+ {[%emt 0:02:12]} Nc6 {[%emt 0:00:20]} 6. Bg5 {[%emt 0:00:29]} h6 {[%emt 0:01:59]} 7. Bxf6 {[%emt 0:00:07]} Qxf6 {[%emt 0:00:00]} 8. e3 {[%emt 0:00:10]} O-O {[%emt 0:01:01]} 9. Rc1 {[%emt 0:02:14]} Rd8 {[%emt 0:04:39]} 10. cxd5 {[%emt 0:09:55]} exd5 {[%emt 0:00:33]} 11. Bd3 {[%emt 0:01:06]} Bg4 {[%emt 0:09:04]} 12. Nd2 {[%emt 0:20:31]} Qg5 {[%emt 0:12:55]} 13. h4 {[%emt 0:08:17]} Qe7 {[%emt 0:05:14]} 14. a3 {[%emt 0:03:09]} Bxc3 {[%emt 0:07:33]} 15. Rxc3 {[%emt 0:06:32]} Rd6 {[%emt 0:21:46]} 16. Bb5 {[%emt 0:05:21]} Bd7 {[%emt 0:04:40]} 17. g3 {[%emt 0:10:05]} a6 {[%emt 0:03:33]} 18. Bxc6 {[%emt 0:00:20]} Rxc6 {[%emt 0:00:21]} 19. Rxc6 {[%emt 0:01:01]} Bxc6 {[%emt 0:00:01]} 20. Qc2 {[%emt 0:00:07]} Bb5 {[%emt 0:02:33]} 21. a4 {[%emt 0:02:22]} Bd7 {[%emt 0:00:15]} 22. O-O {[%emt 0:00:38]} Qb4 {[%emt 0:04:15]} 23. b3 {[%emt 0:03:17]} Rc8 {[%emt 0:01:48]} 24. Rc1 {[%emt 0:03:51]} b6 {[%emt 0:01:28]} 25. Qd3 {[%emt 0:00:44]} a5 {[%emt 0:01:05]} 26. Nf3 {[%emt 0:01:43]} Qa3 {[%emt 0:00:49]} 27. Rc3 {[%emt 0:00:57]} f6 {[%emt 0:00:39]} 28. h5 {[%emt 0:02:08]} Qe7 {[%emt 0:05:43]} 29. Nh4 {[%emt 0:00:11]} Qe4 {[%emt 0:01:19]} 30. Qa6 {[%emt 0:00:47]} Qe6 {[%emt 0:06:34]} 31. Ng6 {[%emt 0:01:43]} Kf7 {[%emt 0:01:43]} 32. Nf4 {[%emt 0:03:38]} Qd6 {[%emt 0:00:19]} 33. Qb7 {[%emt 0:00:11]} c5 {[%emt 0:00:39]} 34. dxc5 {[%emt 0:02:07]} bxc5 {[%emt 0:00:26]} 35. Qxd5+ {[%emt 0:02:07]} Qxd5 {[%emt 0:00:01]} 36. Nxd5 {[%emt 0:00:06]} Be6 {[%emt 0:00:37]} 37. Nb6 {[%emt 0:01:33]} Rc6 {[%emt 0:00:46]} 38. Nc4 {[%emt 0:00:04]} Bxc4 {[%emt 0:00:09]} 39. Rxc4 {[%emt 0:00:05]} Ke6 {[%emt 0:00:05]} 40. Kf1 {[%emt 0:01:07]} Kd5 {[%emt 0:00:09]} 41. Ke2 {[%emt 0:03:54]} Rb6 {[%emt 0:00:10]} 42. Rc3 {[%emt 0:00:01]} Rb4 {[%emt 0:00:24]} 43. Kd3 {[%emt 0:00:26]} c4+ {[%emt 0:01:55]} 44. Rxc4 {[%emt 0:01:18]} Rxb3+ {[%emt 0:00:02]} 45. Rc3 {[%emt 0:00:06]} Rb4 {[%emt 0:00:14]} 46. Rc7 {[%emt 0:00:10]} Rg4 {[%emt 0:01:31]} 47. e4+ {[%emt 0:01:56]} Rxe4 {[%emt 0:00:05]} 48. Rd7+ {[%emt 0:00:05]} Ke6 {[%emt 0:00:23]} 49. Kxe4 {[%emt 0:00:05]} Kxd7 {[%emt 0:00:03]} 50. Kd5 {[%emt 0:00:07]} Ke7 {[%emt 0:01:24]} 51. Kc5 {[%emt 0:00:12]} Ke6 {[%emt 0:00:37]} 52. Kb5 {[%emt 0:00:05]} Kf5 {[%emt 0:00:22]} 53. Kxa5 {[%emt 0:00:06]} Kg4 {[%emt 0:00:13]} 54. Kb4 {[%emt 0:00:10]} 1-0

[Event "31st Roquetas de Mar Open 2020"]
[Site "Roquetas de Mar"]
[Date "2020.01.05"]
[Round "6.12"]
[White "Sosa, Tomas"]
[Black "Kumar, Nikhil"]
[Result "1-0"]
[ECO "B12"]
[WhiteElo "2508"]
[BlackElo "2315"]
[Annotator "ChessBase"]
[PlyCount "61"]
[EventDate "2020.01.02"]
[EventType "swiss"]
[EventCountry "ESP"]
[SourceTitle "playchess.com"]
[Source "ChessBase"]
[SourceQuality "1"]
[TimeControl "5400+30"]

1. e4 c6 2. d4 d5 3. e5 c5 4. dxc5 e6 5. Nd2 Nc6 6. Ngf3 Bxc5 7. Nb3 Bb6 8. Bd3 Nge7 9. Bf4 Ng6 10. Bg3 O-O 11. O-O f5 12. exf6 Qxf6 13. Bxg6 Qxg6 14. c3 Bd7 15. Nbd4 Rae8 16. Qd2 Bxd4 17. cxd4 Rxf3 18. gxf3 e5 19. dxe5 Nxe5 20. Kh1 Qh5 21. Qxd5+ Kh8 22. Bxe5 Rxe5 23. Qxb7 h6 24. Rad1 Qh3 25. Rg1 Rh5 26. Qb8+ Kh7 27. Qg3 Qxg3 28. fxg3 Bc6 29. Kg2 Rf5 30. Rd3 g5 31. Rc1 1-0

[Event "31st Roquetas de Mar Open 2020"]
[Site "Roquetas de Mar"]
[Date "2020.01.05"]
[Round "6.13"]
[White "Luque Saiz, Andres"]
[Black "Marin, Mihail"]
[Result "0-1"]
[ECO "C09"]
[WhiteElo "2103"]
[BlackElo "2496"]
[Annotator "ChessBase"]
[PlyCount "50"]
[EventDate "2020.01.02"]
[EventType "swiss"]
[EventCountry "ESP"]
[SourceTitle "playchess.com"]
[Source "ChessBase"]
[SourceQuality "1"]
[TimeControl "5400+30"]

1. e4 e6 2. d4 d5 3. Nd2 c5 4. Ngf3 Nc6 5. exd5 exd5 6. Bb5 Bd6 7. dxc5 Bxc5 8. O-O Nge7 9. Nb3 Bd6 10. Re1 Bg4 11. h3 Bh5 12. g4 Bg6 13. Nfd4 O-O 14. f4 Be4 15. Bd3 Nxd4 16. Nxd4 Bc5 17. Bxe4 dxe4 18. Rxe4 f5 19. gxf5 Qd5 20. Qd3 Nxf5 21. c3 Rae8 22. Rxe8 Rxe8 23. Kh2 Bxd4 24. cxd4 Nxd4 25. Qf1 Re2+ 0-1

[Event "31st Roquetas de Mar Open 2020"]
[Site "Roquetas de Mar"]
[Date "2020.01.05"]
[Round "6.14"]
[White "Villanueva, Mario"]
[Black "Kiselev, Pavel"]
[Result "1/2-1/2"]
[ECO "B48"]
[WhiteElo "2488"]
[BlackElo "2303"]
[Annotator "ChessBase"]
[PlyCount "142"]
[EventDate "2020.01.02"]
[EventType "swiss"]
[EventCountry "ESP"]
[SourceTitle "playchess.com"]
[Source "ChessBase"]
[SourceQuality "1"]
[TimeControl "5400+30"]

1. e4 {[%emt 0:01:25]} c5 {[%emt 0:00:00]} 2. Nf3 {[%emt 0:00:10]} e6 {[%emt 0:00:00]} 3. d4 {[%emt 0:00:16]} cxd4 {[%emt 0:00:00]} 4. Nxd4 {[%emt 0:00:06]} Nc6 {[%emt 0:00:00]} 5. Nc3 {[%emt 0:00:10]} Qc7 {[%emt 0:00:00]} 6. Be3 {[%emt 0:00:19]} Nf6 {[%emt 0:00:02]} 7. f4 {[%emt 0:00:38]} d6 {[%emt 0:00:04]} 8. Qf3 {[%emt 0:00:43]} Be7 {[%emt 0:00:07]} 9. O-O-O {[%emt 0:00:20]} a6 {[%emt 0:00:03]} 10. g4 {[%emt 0:03:44]} O-O {[%emt 0:00:15]} 11. g5 {[%emt 0:00:44]} Nd7 {[%emt 0:00:05]} 12. h4 {[%emt 0:00:50]} b5 {[%emt 0:00:44]} 13. g6 {[%emt 0:14:59]} Nf6 {[%emt 0:17:27]} 14. gxh7+ {[%emt 0:03:36]} Kh8 {[%emt 0:04:17]} 15. Nxc6 {[%emt 0:06:37]} Qxc6 {[%emt 0:00:16]} 16. Bd3 {[%emt 0:00:08]} b4 {[%emt 0:09:05]} 17. Ne2 {[%emt 0:00:56]} e5 {[%emt 0:00:41]} 18. Rdg1 {[%emt 0:03:29]} Be6 {[%emt 0:08:28]} 19. f5 {[%emt 0:15:31]} Bxa2 {[%emt 0:02:57]} 20. Qg2 {[%emt 0:04:16]} Ne8 {[%emt 0:03:03]} 21. h5 {[%emt 0:00:03]} f6 {[%emt 0:02:29]} 22. h6 {[%emt 0:00:21]} Rf7 {[%emt 0:00:07]} 23. Rh3 {[%emt 0:02:07]} Rc8 {[%emt 0:04:02]} 24. hxg7+ {[%emt 0:02:31]} Nxg7 {[%emt 0:01:18]} 25. Bh6 {[%emt 0:01:35]} Bf8 {[%emt 0:00:12]} 26. Ng3 {[%emt 0:00:39]} d5 {[%emt 0:10:22]} 27. Nh5 {[%emt 0:03:28]} Rcc7 {[%emt 0:02:46]} 28. Rg3 {[%emt 0:06:38]} dxe4 {[%emt 0:11:01]} 29. Bxe4 {[%emt 0:00:23]} Qd7 {[%emt 0:02:34]} 30. Bxg7+ {[%emt 0:03:24]} Bxg7 {[%emt 0:00:14]} 31. Nxg7 {[%emt 0:02:07]} Rxg7 {[%emt 0:00:25]} 32. b3 {[%emt 0:00:30]} Bxb3 {[%emt 0:06:07]} 33. Rxg7 {[%emt 0:00:09]} Qxg7 {[%emt 0:00:06]} 34. Qxg7+ {[%emt 0:00:16]} Rxg7 {[%emt 0:00:02]} 35. Rxg7 {[%emt 0:00:12]} Kxg7 {[%emt 0:00:04]} 36. cxb3 {[%emt 0:00:07]} Kxh7 {[%emt 0:00:04]} 37. Kd2 {[%emt 0:12:47]} Kh6 {[%emt 0:00:04]} 38. Kd3 {[%emt 0:00:51]} Kg5 {[%emt 0:00:04]} 39. Kc4 {[%emt 0:00:05]} Kf4 {[%emt 0:04:02]} 40. Kd5 {[%emt 0:00:06]} a5 {[%emt 0:02:04]} 41. Bc2 {[%emt 0:00:25]} Ke3 {[%emt 0:07:11]} 42. Ke6 {[%emt 0:01:31]} Kd4 {[%emt 0:03:38]} 43. Kxf6 {[%emt 0:00:10]} e4 {[%emt 0:00:01]} 44. Bxe4 {[%emt 0:02:41]} Kxe4 {[%emt 0:00:02]} 45. Ke6 {[%emt 0:00:23]} a4 {[%emt 0:00:05]} 46. f6 {[%emt 0:00:09]} a3 {[%emt 0:00:02]} 47. f7 {[%emt 0:00:05]} a2 {[%emt 0:00:02]} 48. f8=Q {[%emt 0:00:08]} a1=Q {[%emt 0:00:02]} 49. Qxb4+ {[%emt 0:00:35]} Qd4 {[%emt 0:00:04]} 50. Qb5 {[%emt 0:01:48]} Ke3 {[%emt 0:04:19]} 51. b4 {[%emt 0:00:34]} Qg4+ {[%emt 0:01:08]} 52. Kd6 {[%emt 0:00:36]} Qd4+ {[%emt 0:00:46]} 53. Kc6 {[%emt 0:00:38]} Qf6+ {[%emt 0:00:07]} 54. Kb7 {[%emt 0:00:20]} Qe7+ {[%emt 0:02:07]} 55. Ka6 {[%emt 0:00:35]} Kd4 {[%emt 0:01:02]} 56. Qb6+ {[%emt 0:00:20]} Kc4 {[%emt 0:00:15]} 57. b5 {[%emt 0:00:24]} Qa3+ {[%emt 0:00:50]} 58. Qa5 {[%emt 0:00:12]} Qf3 {[%emt 0:00:37]} 59. Qc7+ {[%emt 0:00:43]} Kb4 {[%emt 0:00:02]} 60. Qd6+ {[%emt 0:00:36]} Ka4 {[%emt 0:00:24]} 61. Qd4+ {[%emt 0:00:20]} Kb3 {[%emt 0:00:13]} 62. b6 {[%emt 0:00:34]} Qa8+ {[%emt 0:00:10]} 63. Kb5 {[%emt 0:00:06]} Qe8+ {[%emt 0:00:09]} 64. Kc5 {[%emt 0:00:06]} Qc8+ {[%emt 0:00:15]} 65. Kd5 {[%emt 0:00:39]} Qd7+ {[%emt 0:00:05]} 66. Ke4 {[%emt 0:00:09]} Qg4+ {[%emt 0:00:02]} 67. Kd3 {[%emt 0:00:11]} Qd1+ {[%emt 0:00:04]} 68. Ke3 {[%emt 0:00:26]} Qg1+ {[%emt 0:00:03]} 69. Ke4 {[%emt 0:00:20]} Qg4+ {[%emt 0:00:03]} 70. Kd5 {[%emt 0:00:12]} Qd7+ {[%emt 0:00:03]} 71. Kc5 {[%emt 0:00:09]} Qc8+ {[%emt 0:00:04]} 1/2-1/2

[Event "31st Roquetas de Mar Open 2020"]
[Site "Roquetas de Mar"]
[Date "2020.01.05"]
[Round "6.15"]
[White "Moreto Quintana, Alex"]
[Black "Gines Esteo, Pedro Antonio"]
[Result "0-1"]
[ECO "B11"]
[WhiteElo "2165"]
[BlackElo "2482"]
[Annotator "ChessBase"]
[PlyCount "106"]
[EventDate "2020.01.02"]
[EventType "swiss"]
[EventCountry "ESP"]
[SourceTitle "playchess.com"]
[Source "ChessBase"]
[SourceQuality "1"]
[TimeControl "5400+30"]

1. e4 c6 2. Nc3 d5 3. Nf3 Bg4 4. h3 Bxf3 5. Qxf3 e6 6. g3 Nf6 7. Bg2 Nbd7 8. O-O Bc5 9. d3 O-O 10. Qe2 b5 11. Kh1 d4 12. Nb1 a5 13. a4 Nb6 14. axb5 cxb5 15. e5 Nfd5 16. c4 dxc3 17. bxc3 Qd7 18. c4 Bd4 19. Bb2 Bxb2 20. Qxb2 bxc4 21. dxc4 Nxc4 22. Qd4 Rac8 23. Bxd5 Qxd5+ 24. Qxd5 exd5 25. Rd1 Rfd8 26. Nd2 Nb2 27. Rf1 Rc2 28. Nb3 a4 29. Nd4 Rc4 30. Ra2 Rxd4 31. Rxb2 a3 32. Ra2 Rd3 33. Rfa1 Ra8 34. Kg2 Kf8 35. f4 Ke7 36. Kh2 h5 37. h4 Ke6 38. Rb1 Ra7 39. Rb8 Kf5 40. Kh3 g6 41. Rb6 d4 42. Rf6+ Ke4 43. e6 fxe6 44. Rxg6 Kd5 45. Rg5+ Kc4 46. Re5 Kb3 47. Ree2 Rg7 48. Ra1 Rgxg3+ 49. Kh2 Rh3+ 50. Kg2 Rdg3+ 51. Kf1 Rh1+ 52. Kf2 Rxa1 53. Kxg3 a2 0-1

[Event "31st Roquetas de Mar Open 2020"]
[Site "Roquetas de Mar"]
[Date "2020.01.05"]
[Round "6.16"]
[White "Real De Azua, Ernesto"]
[Black "Martin Carmona, Gaston Manuel"]
[Result "1/2-1/2"]
[ECO "D35"]
[WhiteElo "2456"]
[BlackElo "2211"]
[Annotator "ChessBase"]
[PlyCount "60"]
[EventDate "2020.01.02"]
[EventType "swiss"]
[EventCountry "ESP"]
[SourceTitle "playchess.com"]
[Source "ChessBase"]
[SourceQuality "1"]
[TimeControl "5400+30"]

1. d4 {[%emt 0:00:00]} d5 {[%emt 0:03:04]} 2. c4 {[%emt 0:01:27]} e6 {[%emt 0:01:03]} 3. Nc3 {[%emt 0:00:35]} Nf6 {[%emt 0:00:50]} 4. cxd5 {[%emt 0:00:38]} Nxd5 {[%emt 0:03:01]} 5. e4 {[%emt 0:02:52]} Nxc3 {[%emt 0:00:37]} 6. bxc3 {[%emt 0:00:06]} c5 {[%emt 0:01:29]} 7. Rb1 {[%emt 0:00:12]} Be7 {[%emt 0:00:07]} 8. Nf3 {[%emt 0:00:58]} O-O {[%emt 0:00:49]} 9. Bc4 {[%emt 0:00:48]} a6 {[%emt 0:03:33]} 10. a4 {[%emt 0:10:55]} Qc7 {[%emt 0:03:47]} 11. Bd3 {[%emt 0:00:56]} Nd7 {[%emt 0:07:01]} 12. O-O {[%emt 0:09:55]} b6 {[%emt 0:09:49]} 13. Be3 {[%emt 0:05:00]} Bb7 {[%emt 0:01:33]} 14. Qe2 {[%emt 0:04:06]} Bc6 {[%emt 0:06:06]} 15. Qc2 {[%emt 0:13:11]} Qb7 {[%emt 0:14:38]} 16. Nd2 {[%emt 0:03:08]} cxd4 {[%emt 0:04:53]} 17. cxd4 {[%emt 0:00:08]} Rfc8 {[%emt 0:00:31]} 18. Qb3 {[%emt 0:05:38]} Rab8 {[%emt 0:06:49]} 19. Rfc1 {[%emt 0:15:19]} b5 {[%emt 0:05:45]} 20. axb5 {[%emt 0:02:32]} axb5 {[%emt 0:00:12]} 21. d5 {[%emt 0:06:46]} exd5 {[%emt 0:01:02]} 22. exd5 {[%emt 0:00:05]} Bxd5 {[%emt 0:00:33]} 23. Rxc8+ {[%emt 0:00:07]} Rxc8 {[%emt 0:00:04]} 24. Qxb5 {[%emt 0:00:05]} Qxb5 {[%emt 0:02:18]} 25. Bxb5 {[%emt 0:02:10]} Nf6 {[%emt 0:01:02]} 26. h3 {[%emt 0:00:14]} Rb8 {[%emt 0:01:33]} 27. Bd3 {[%emt 0:00:09]} Rxb1+ {[%emt 0:00:03]} 28. Bxb1 {[%emt 0:00:05]} h6 {[%emt 0:00:07]} 29. Bd3 {[%emt 0:00:06]} Be6 {[%emt 0:00:11]} 30. Bc4 {[%emt 0:00:06]} Bxc4 {[%emt 0:00:15]} 1/2-1/2

[Event "31st Roquetas de Mar Open 2020"]
[Site "Roquetas de Mar"]
[Date "2020.01.05"]
[Round "6.17"]
[White "Rajarishi Karthi"]
[Black "Camacho Collados, Jose"]
[Result "1-0"]
[ECO "D86"]
[WhiteElo "2103"]
[BlackElo "2419"]
[Annotator "ChessBase"]
[PlyCount "79"]
[EventDate "2020.01.02"]
[EventType "swiss"]
[EventCountry "ESP"]
[SourceTitle "playchess.com"]
[Source "ChessBase"]
[SourceQuality "1"]
[TimeControl "5400+30"]

1. d4 {[%emt 0:02:44]} Nf6 {[%emt 0:00:00]} 2. c4 {[%emt 0:00:58]} g6 {[%emt 0:00:13]} 3. Nc3 {[%emt 0:00:12]} d5 {[%emt 0:00:12]} 4. cxd5 {[%emt 0:01:02]} Nxd5 {[%emt 0:00:05]} 5. e4 {[%emt 0:01:00]} Nxc3 {[%emt 0:00:09]} 6. bxc3 {[%emt 0:00:09]} Bg7 {[%emt 0:00:03]} 7. Bc4 {[%emt 0:00:18]} c5 {[%emt 0:00:18]} 8. Ne2 {[%emt 0:00:10]} Nc6 {[%emt 0:00:03]} 9. Be3 {[%emt 0:00:09]} cxd4 {[%emt 0:08:40]} 10. cxd4 {[%emt 0:00:32]} Qa5+ {[%emt 0:00:03]} 11. Qd2 {[%emt 0:00:07]} Qxd2+ {[%emt 0:00:16]} 12. Kxd2 {[%emt 0:00:06]} O-O {[%emt 0:00:27]} 13. Rhd1 {[%emt 0:00:09]} Rd8 {[%emt 0:04:36]} 14. Ke1 {[%emt 0:00:24]} Na5 {[%emt 0:00:52]} 15. Bd3 {[%emt 0:02:19]} Bd7 {[%emt 0:04:57]} 16. Rac1 {[%emt 0:01:18]} Ba4 {[%emt 0:01:54]} 17. Bc2 {[%emt 0:00:23]} Bb5 {[%emt 0:01:54]} 18. Bd3 {[%emt 0:00:08]} Ba4 {[%emt 0:03:49]} 19. Bc2 {[%emt 0:00:16]} Bxc2 {[%emt 0:01:36]} 20. Rxc2 {[%emt 0:00:05]} b5 {[%emt 0:00:05]} 21. Rc7 {[%emt 0:00:38]} Kf8 {[%emt 0:12:18]} 22. Nc3 {[%emt 0:00:49]} a6 {[%emt 0:02:03]} 23. Nd5 {[%emt 0:02:21]} Rac8 {[%emt 0:21:28]} 24. Ra7 {[%emt 0:00:47]} Ra8 {[%emt 0:01:42]} 25. Rxa8 {[%emt 0:00:52]} Rxa8 {[%emt 0:00:05]} 26. Nb6 {[%emt 0:00:05]} Ra7 {[%emt 0:07:15]} 27. Rc1 {[%emt 0:00:25]} f5 {[%emt 0:00:18]} 28. e5 {[%emt 0:03:15]} Rb7 {[%emt 0:02:51]} 29. Bd2 {[%emt 0:03:09]} Rxb6 {[%emt 0:07:18]} 30. Bxa5 {[%emt 0:00:39]} Re6 {[%emt 0:00:59]} 31. f4 {[%emt 0:00:42]} g5 {[%emt 0:01:09]} 32. Rc8+ {[%emt 0:00:20]} Kf7 {[%emt 0:00:01]} 33. d5 {[%emt 0:00:12]} Rh6 {[%emt 0:00:50]} 34. e6+ {[%emt 0:00:18]} Kg6 {[%emt 0:00:28]} 35. Rg8 {[%emt 0:00:31]} Rxh2 {[%emt 0:02:24]} 36. Bc3 {[%emt 0:00:12]} Kh5 {[%emt 0:03:28]} 37. Rxg7 {[%emt 0:00:10]} Kg4 {[%emt 0:00:19]} 38. d6 {[%emt 0:00:24]} Kxf4 {[%emt 0:00:22]} 39. d7 {[%emt 0:00:12]} Ke3 {[%emt 0:00:29]} 40. Bd2+ {[%emt 0:00:04]} 1-0

[Event "31st Roquetas de Mar Open 2020"]
[Site "Roquetas de Mar"]
[Date "2020.01.06"]
[Round "7.1"]
[White "Maiorov, Nikita"]
[Black "Bernadskiy, Vitaliy"]
[Result "1/2-1/2"]
[ECO "D30"]
[WhiteElo "2519"]
[BlackElo "2588"]
[Annotator "RC"]
[PlyCount "67"]
[EventDate "2020.01.02"]
[EventType "swiss"]
[EventCountry "ESP"]
[SourceTitle "playchess.com"]
[Source "ChessBase"]
[SourceQuality "1"]
[TimeControl "5400+30"]

1. d4 d5 2. c4 e6 3. Nf3 Nf6 4. e3 a6 5. Nc3 dxc4 6. Bxc4 b5 7. Bb3 c5 8. O-O Bb7 9. e4 cxd4 10. Nxd4 Nc6 11. Nxc6 Qxd1 12. Rxd1 Bxc6 13. f3 Bc5+ 14. Kf1 Nd7 15. Ne2 Ke7 16. Nd4 Rhc8 17. Bg5+ f6 18. Be3 Bxd4 19. Bxd4 b4 20. Rdc1 Bb5+ 21. Kf2 a5 22. Bd1 Ne5 23. Bxe5 fxe5 24. a3 bxa3 25. bxa3 Rab8 26. Rxc8 Rxc8 27. Rb1 Rc5 28. Ke1 Kd6 29. Kd2 Kc7 30. Bb3 Bd7 31. Ba2 Rc6 32. Bb3 Rc5 33. Ba2 Rc6 34. Bb3 1/2-1/2

[Event "31st Roquetas de Mar Open 2020"]
[Site "Roquetas de Mar"]
[Date "2020.01.06"]
[Round "7.3"]
[White "Wieczorek, Oskar"]
[Black "Harutyunian, Tigran K."]
[Result "0-1"]
[ECO "D31"]
[WhiteElo "2490"]
[BlackElo "2533"]
[Annotator "RC"]
[PlyCount "62"]
[EventDate "2020.01.02"]
[EventType "swiss"]
[EventCountry "ESP"]
[SourceTitle "playchess.com"]
[Source "ChessBase"]
[SourceQuality "1"]
[TimeControl "5400+30"]

1. c4 {[%emt 0:05:38]} e6 {[%emt 0:02:06]} 2. Nc3 {[%emt 0:01:33]} d5 {[%emt 0:00:33]} 3. d4 {[%emt 0:00:23]} Be7 {[%emt 0:00:34]} 4. cxd5 {[%emt 0:02:07]} exd5 {[%emt 0:00:05]} 5. Bf4 {[%emt 0:00:41]} c6 {[%emt 0:00:07]} 6. e3 {[%emt 0:02:56]} Bf5 {[%emt 0:00:09]} 7. Nge2 {[%emt 0:03:39]} Nd7 {[%emt 0:00:42]} 8. h4 {[%emt 0:01:19]} h5 {[%emt 0:13:17]} 9. Ng3 {[%emt 0:01:46]} Bg6 {[%emt 0:01:11]} 10. Bd3 {[%emt 0:00:07]} Bxd3 {[%emt 0:06:54]} 11. Qxd3 {[%emt 0:00:05]} Ngf6 {[%emt 0:01:14]} 12. Nf5 {[%emt 0:01:03]} O-O {[%emt 0:00:11]} 13. Nxe7+ {[%emt 0:13:17]} Qxe7 {[%emt 0:00:08]} 14. O-O-O {[%emt 0:01:48]} Rfe8 {[%emt 0:05:14]} 15. f3 {[%emt 0:03:38]} b5 {[%emt 0:05:50]} 16. Kb1 {[%emt 0:17:11]} a5 {[%emt 0:02:41]} 17. Bg5 {[%emt 0:10:04]} a4 {[%emt 0:01:43]} 18. Ne2 {[%emt 0:01:54]} Nb6 {[%emt 0:09:10]} 19. Ng3 {[%emt 0:07:02]} Nc4 {[%emt 0:00:17]} 20. Rc1 {[%emt 0:00:41]} Qb4 {[%emt 0:10:34]} 21. Qc3 {[%emt 0:16:10]} Qd6 {[%emt 0:00:22]} 22. Bf4 {[%emt 0:00:24]} Qd7 {[%emt 0:04:05]} 23. Rhe1 {[%emt 0:00:42]} Re6 {[%emt 0:01:25]} 24. Qb4 {[%emt 0:01:00]} Rae8 {[%emt 0:00:52]} 25. Rc3 {[%emt 0:00:34]} Qa7 {[%emt 0:01:46]} 26. Rd3 {[%emt 0:05:17]} g6 {[%emt 0:03:13]} 27. Nf1 {[%emt 0:00:20]} Nd7 {[%emt 0:00:32]} 28. Rc1 {[%emt 0:00:23]} Nb8 {[%emt 0:01:57]} 29. b3 {[%emt 0:01:41]} Na6 {[%emt 0:01:38]} 30. Qe1 {[%emt 0:00:16]} axb3 {[%emt 0:00:08]} 31. axb3 {[%emt 0:00:04]} Ra8 {[%emt 0:00:28]} 0-1